bitfinex-derivatives/quotes_BTCF0:USTF0_20250903
["timestamp","ask_amount","ask_price","bid_price","bid_amount"]
[1756929914543,0.38651565,112240.0,112230.0,1.75702]
[1756929914842,0.38651565,112240.0,112230.0,0.94114]
[1756929914843,0.02151853,112240.0,112230.0,0.94114]
[1756929915042,0.02151853,112240.0,112230.0,2.12201712]
[1756929915841,0.02151853,112240.0,112230.0,1.75702]
[1756929916435,0.02151853,112240.0,112230.0,2.12201712]
[1756929923343,0.02151853,112240.0,112230.0,1.75702]
[1756929923543,0.02151853,112240.0,112230.0,2.12201712]
[1756929927857,0.02151853,112240.0,112230.0,1.75702]
[1756929928057,0.02151853,112240.0,112230.0,1.30613712]
[1756929928257,0.02151853,112240.0,112230.0,2.12189712]
[1756929929661,0.02151853,112240.0,112230.0,1.30613712]
[1756929929963,0.02151853,112240.0,112230.0,2.12185712]
[1756929934958,0.02151853,112240.0,112230.0,2.12177712]
[1756929936066,0.02151853,112240.0,112230.0,0.67114]
[1756929936370,0.02151853,112240.0,112230.0,2.19177712]
[1756929938769,0.02151853,112240.0,112230.0,3.37583688]
[1756929938966,0.0001,112250.0,112240.0,0.01466]
[1756929939166,0.0001,112260.0,112250.0,0.03937]
[1756929939366,0.0001,112270.0,112260.0,0.03937]
[1756929939567,0.02309,112280.0,112270.0,0.03937]
[1756929939868,0.38798712,112280.0,112270.0,0.36937]
[1756929940169,0.63798712,112280.0,112270.0,0.37382]
[1756929940369,0.63798712,112280.0,112270.0,0.38271109]
[1756929940666,0.02699,112280.0,112270.0,1.10850821]
[1756929940868,0.02699,112280.0,112270.0,2.99102821]
[1756929941063,0.004,112280.0,112270.0,3.08006491]
[1756929941268,0.004,112280.0,112270.0,3.33006491]
[1756929941571,0.0001,112290.0,112280.0,0.03937]
[1756929941870,0.02309,112300.0,112290.0,0.03937]
[1756929942072,0.02299,112300.0,112290.0,1.96068712]
[1756929944468,0.02299,112300.0,112290.0,2.03059235]
[1756929944672,0.02599,112300.0,112290.0,2.03059235]
[1756929944873,0.03099,112300.0,112290.0,2.03059235]
[1756929946570,0.008,112300.0,112290.0,2.03059235]
[1756929948272,0.008,112300.0,112290.0,2.03039235]
[1756929950174,0.008,112300.0,112290.0,2.03031235]
[1756929950673,0.008,112300.0,112290.0,1.21507235]
[1756929950871,0.008,112300.0,112290.0,1.66527523]
[1756929951071,0.008,112300.0,112290.0,2.03027235]
[1756929955581,0.008,112300.0,112290.0,3.37526371]
[1756929955773,0.008,112300.0,112290.0,3.46428461]
[1756929955974,0.008,112300.0,112290.0,3.46412461]
[1756929956673,0.003,112300.0,112290.0,3.46412461]
[1756929957279,0.0001,112310.0,112300.0,0.03937]
[1756929957479,0.02309,112320.0,112310.0,0.03937]
[1756929957675,0.40917886,112320.0,112310.0,1.57517]
[1756929958071,0.04418174,112320.0,112310.0,1.57517]
[1756929958272,0.40917886,112320.0,112310.0,1.57517]
[1756929958778,0.41117886,112320.0,112310.0,1.57513]
[1756929959384,1.77109022,112320.0,112310.0,0.83967]
[1756929959578,2.13189022,112320.0,112310.0,0.83963]
[1756929959882,2.13189022,112320.0,112290.0,0.44536523]
[1756929960081,0.03791,112310.0,112300.0,0.83963]
[1756929960284,0.01492,112300.0,112290.0,0.08456523]
[1756929960481,0.03791,112300.0,112290.0,0.09461523]
[1756929960788,0.05910174,112300.0,112290.0,0.83963]
[1756929961291,0.42409886,112300.0,112290.0,0.83963]
[1756929961685,0.05910174,112300.0,112290.0,0.83963]
[1756929961878,0.42409886,112300.0,112290.0,0.83963]
[1756929962780,0.42409886,112300.0,112290.0,1.07963]
[1756929963986,0.42409886,112300.0,112290.0,0.90963]
[1756929964187,0.42409886,112300.0,112290.0,0.90959]
[1756929964381,0.40290712,112300.0,112290.0,0.90959]
[1756929964582,0.42414159,112300.0,112290.0,0.90959]
[1756929964992,0.42414159,112300.0,112290.0,0.09471]
[1756929965193,0.42414159,112300.0,112290.0,0.90959]
[1756929968793,0.42414159,112300.0,112290.0,0.90955]
[1756929969186,0.42414159,112300.0,112290.0,0.92383]
[1756929969384,0.47215943,112300.0,112290.0,0.92383]
[1756929971493,0.47192139,112300.0,112290.0,0.92383]
[1756929974995,0.45700139,112300.0,112290.0,0.92383]
[1756929978395,0.45700139,112300.0,112290.0,0.85383]
[1756929979791,0.40898355,112300.0,112290.0,0.85383]
[1756929980387,0.42357355,112300.0,112290.0,0.85383]
[1756929980589,0.40898355,112300.0,112290.0,0.85383]
[1756929982087,0.40898355,112300.0,112290.0,0.85367]
[1756929987805,0.40898355,112300.0,112290.0,0.02471]
[1756929987996,0.42357355,112300.0,112290.0,0.02471]
[1756929988299,0.42357355,112300.0,112290.0,0.83931]
[1756929988499,0.47159139,112300.0,112290.0,0.83931]
[1756929989092,0.48066476,112300.0,112290.0,0.83931]
[1756929991301,0.47159139,112300.0,112290.0,0.83931]
[1756929992102,0.47159139,112300.0,112290.0,0.85359]
[1756929992600,0.40898355,112300.0,112290.0,0.85359]
[1756929994495,0.40898355,112300.0,112290.0,0.03899]
[1756929994696,0.40898355,112300.0,112290.0,0.85351]
[1756929999406,0.45700139,112300.0,112290.0,0.85351]
[1756930000407,0.43401139,112300.0,112290.0,1.21431]
[1756930000598,0.06925231,112300.0,112290.0,1.82906908]
[1756930000798,0.43411139,112310.0,112290.0,1.82906908]
[1756930001001,0.45798139,112310.0,112300.0,0.03882]
[1756930001208,0.45788139,112310.0,112300.0,0.03882]
[1756930002308,0.45788139,112310.0,112300.0,0.04327]
[1756930003406,0.45888139,112310.0,112300.0,0.04327]
[1756930004008,0.45988139,112310.0,112300.0,0.04327]
[1756930004706,0.45988139,112310.0,112300.0,0.05237006]
[1756930009310,0.45988139,112310.0,112300.0,0.40237006]
[1756930009702,0.47595468,112310.0,112300.0,0.40237006]
[1756930009913,0.4760633,112310.0,112300.0,0.40237006]
[1756930010314,0.4760633,112310.0,112300.0,1.22745006]
[1756930010504,0.09529016,112310.0,112300.0,2.21220914]
[1756930010811,0.07142016,112310.0,112300.0,2.18216914]
[1756930011308,0.02334309,112310.0,112300.0,2.18216914]
[1756930012415,0.02334309,112310.0,112300.0,1.81741006]
[1756930012599,0.02334309,112310.0,112300.0,2.18216914]
[1756930013106,0.02334309,112310.0,112300.0,1.36792914]
[1756930013306,0.02334309,112310.0,112300.0,2.18212914]
[1756930014712,0.02334309,112310.0,112300.0,2.18208914]
[1756930014914,0.02334309,112310.0,112300.0,1.81733006]
[1756930015112,0.02334309,112310.0,112300.0,2.18208914]
[1756930017821,0.02334309,112310.0,112300.0,2.27110144]
[1756930018206,0.02334309,112310.0,112300.0,2.18200914]
[1756930019214,0.02334309,112310.0,112300.0,1.93200914]
[1756930019714,0.002,112310.0,112300.0,1.93200914]
[1756930020308,0.002,112310.0,112300.0,2.02102094]
[1756930020611,0.0001,112320.0,112310.0,0.03882]
[1756930020806,0.02397,112330.0,112320.0,0.03882]
[1756930021007,0.0451507,112330.0,112320.0,1.89837908]
[1756930021408,0.0451507,112330.0,112320.0,1.08437908]
[1756930021615,0.0451507,112330.0,112320.0,1.89833908]
[1756930022106,0.0451507,112330.0,112320.0,1.53358]
[1756930022307,0.0451507,112330.0,112320.0,1.53803]
[1756930023118,0.0481507,112330.0,112320.0,1.53803]
[1756930023417,0.0501507,112330.0,112320.0,1.53803]
[1756930024319,0.0501507,112330.0,112320.0,1.90278908]
[1756930025119,0.0262807,112330.0,112320.0,1.90278908]
[1756930030320,0.0262807,112330.0,112320.0,1.08882908]
[1756930030525,0.0262807,112330.0,112320.0,1.90258908]
[1756930031219,0.0262807,112330.0,112320.0,1.53783]
[1756930031416,0.0262807,112330.0,112320.0,1.90258908]
[1756930033427,0.0262807,112330.0,112320.0,1.90228898]
[1756930034427,0.0262807,112330.0,112320.0,1.08852898]
[1756930034631,0.0262807,112330.0,112320.0,1.53779]
[1756930034926,0.0512607,112330.0,112320.0,1.53775]
[1756930035427,0.41571968,112330.0,112320.0,1.53775]
[1756930036014,0.0512607,112330.0,112320.0,1.53775]
[1756930036221,0.41571968,112330.0,112320.0,1.53775]
[1756930037425,0.0262807,112330.0,112320.0,1.53775]
[1756930037619,0.0262807,112330.0,112320.0,1.90220898]
[1756930038432,0.0262807,112330.0,112320.0,1.53775]
[1756930038733,0.0262807,112330.0,112320.0,1.90220898]
[1756930040941,0.0262807,112330.0,112320.0,1.53775]
[1756930047642,0.0262807,112330.0,112320.0,1.90220898]
[1756930049450,0.0262807,112330.0,112320.0,3.78340898]
[1756930050050,0.0262807,112330.0,112320.0,3.78324898]
[1756930052244,0.0262807,112330.0,112320.0,2.96972898]
[1756930052453,0.0262807,112330.0,112320.0,3.78320898]
[1756930054756,0.0262807,112330.0,112320.0,3.41875]
[1756930054956,0.0262807,112330.0,112320.0,3.78320898]
[1756930056060,0.0262807,112330.0,112320.0,2.96972898]
[1756930056358,0.39073968,112330.0,112320.0,3.41871]
[1756930056760,0.0262807,112330.0,112320.0,3.78316898]
[1756930057460,0.0262807,112330.0,112320.0,3.41871]
[1756930059063,0.0262807,112330.0,112320.0,3.78316898]
[1756930064255,0.0262807,112330.0,112320.0,3.78312898]
[1756930066361,0.0262807,112330.0,112320.0,3.41867]
[1756930066662,0.39073968,112330.0,112320.0,3.09863]
[1756930066864,0.39073968,112330.0,112320.0,1.92447]
[1756930066865,0.64073968,112330.0,112320.0,1.92447]
[1756930067064,0.70308675,112330.0,112320.0,1.92447]
[1756930067258,0.70308675,112330.0,112320.0,2.73783]
[1756930067865,0.68881675,112330.0,112320.0,3.09863]
[1756930069160,0.68881675,112330.0,112320.0,3.09859]
[1756930069766,0.64073968,112330.0,112320.0,3.09859]
[1756930070657,0.64073968,112330.0,112320.0,2.28527]
[1756930070858,0.64073968,112330.0,112320.0,3.09859]
[1756930071257,0.64073968,112330.0,112320.0,3.11859]
[1756930071459,0.2762807,112330.0,112320.0,3.43859]
[1756930071661,0.2762807,112330.0,112320.0,3.80304898]
[1756930074670,0.2762807,112330.0,112320.0,3.43859]
[1756930074969,0.2762807,112330.0,112320.0,3.80304898]
[1756930075163,0.0262807,112330.0,112320.0,3.80304898]
[1756930075369,0.0262807,112330.0,112320.0,5.14642592]
[1756930076471,0.0262807,112330.0,112320.0,4.05304898]
[1756930076861,0.0252807,112330.0,112320.0,4.05304898]
[1756930077061,0.0242807,112330.0,112320.0,4.05304898]
[1756930077258,0.0242807,112330.0,112320.0,4.41750796]
[1756930077458,0.0242807,112330.0,112320.0,4.05304898]
[1756930079172,0.0242807,112330.0,112320.0,3.80304898]
[1756930079964,0.0242807,112330.0,112320.0,4.89642592]
[1756930080172,0.0242807,112330.0,112320.0,3.80304898]
[1756930081672,0.0242807,112330.0,112320.0,4.06824898]
[1756930082770,0.0242807,112330.0,112320.0,3.25492898]
[1756930082969,0.0242807,112330.0,112320.0,4.06820898]
[1756930083563,0.0242807,112330.0,112320.0,2.89047]
[1756930084073,0.0242807,112330.0,112320.0,4.06820898]
[1756930085575,0.0242807,112330.0,112320.0,3.25492898]
[1756930086071,0.0242807,112330.0,112320.0,4.06820898]
[1756930088477,0.0242807,112330.0,112320.0,3.70375]
[1756930088672,0.0242807,112330.0,112320.0,3.25492898]
[1756930089075,0.0242807,112330.0,112320.0,4.06820898]
[1756930091266,0.0242807,112330.0,112320.0,3.25492898]
[1756930091466,0.0242807,112330.0,112320.0,4.06816898]
[1756930093477,0.0242807,112330.0,112320.0,4.06814219]
[1756930094178,0.0242807,112330.0,112320.0,2.55047]
[1756930094378,0.38871289,112330.0,112320.0,3.36371]
[1756930097773,0.38871289,112330.0,112320.0,2.55047]
[1756930097976,2.17839653,112330.0,112320.0,1.10745]
[1756930098174,2.19441059,112330.0,112320.0,1.08289]
[1756930098383,2.19441059,112330.0,112320.0,1.07844]
[1756930098677,1.10111402,112330.0,112320.0,1.07844]
[1756930098874,1.46554621,112330.0,112320.0,1.07844]
[1756930099078,1.10111402,112330.0,112320.0,0.83787]
[1756930099271,1.03702289,112330.0,112320.0,0.83787]
[1756930099882,1.10111402,112330.0,112320.0,0.83787]
[1756930105586,1.46554621,112330.0,112320.0,0.83787]
[1756930106789,1.10111402,112330.0,112320.0,0.83787]
[1756930107880,1.03702289,112330.0,112320.0,0.83787]
[1756930109781,1.08494903,112330.0,112320.0,0.83787]
[1756930110686,1.08494903,112330.0,112320.0,0.8519]
[1756930120187,0.82092903,112330.0,112320.0,0.8519]
[1756930122497,0.83453903,112330.0,112320.0,0.8519]
[1756930122894,0.83453903,112330.0,112320.0,0.83791]
[1756930123193,0.03732,112320.0,112310.0,0.02762]
[1756930123497,0.78746508,112320.0,112310.0,0.8409]
[1756930123701,0.78746508,112320.0,112310.0,0.85477]
[1756930124399,0.83539122,112320.0,112310.0,0.85477]
[1756930125199,0.47095903,112320.0,112310.0,0.85477]
[1756930126402,0.83539122,112320.0,112310.0,0.85477]
[1756930127602,0.45734903,112320.0,112310.0,0.85477]
[1756930129499,0.45734903,112320.0,112310.0,1.21557]
[1756930130806,0.43363903,112320.0,112310.0,1.21557]
[1756930131106,0.06920684,112320.0,112310.0,1.46557]
[1756930131300,0.0212807,112320.0,112310.0,1.83000219]
[1756930131501,0.0212807,112320.0,112310.0,1.91900659]
[1756930131793,0.0212807,112320.0,112310.0,1.83000219]
[1756930131998,0.0001,112330.0,112320.0,0.03704]
[1756930132199,0.0215258,112330.0,112320.0,0.76227219]
[1756930133108,0.0235258,112330.0,112320.0,0.76227219]
[1756930133305,0.0235258,112330.0,112320.0,1.01672219]
[1756930134006,0.0245258,112330.0,112320.0,1.01672219]
[1756930136103,0.41266799,112330.0,112320.0,1.46545]
[1756930136309,0.41266799,112330.0,112320.0,0.85465]
[1756930137801,0.0482358,112330.0,112320.0,0.85465]
[1756930138008,0.41266799,112330.0,112320.0,0.85461]
[1756930139112,0.42627799,112330.0,112320.0,0.85461]
[1756930139410,0.41266799,112330.0,112320.0,0.85461]
[1756930140413,0.42627799,112330.0,112320.0,0.04149]
[1756930140611,0.78707799,112330.0,112320.0,0.85457]
[1756930142509,0.78707799,112330.0,112320.0,0.85453]
[1756930143309,1.40151018,112330.0,112320.0,0.02762]
[1756930143514,2.1783007,112330.0,112320.0,0.00445]
[1756930143713,2.1783007,112330.0,112320.0,0.81749]
[1756930145924,2.1783007,112330.0,112320.0,0.84066]
[1756930147314,1.08500413,112330.0,112320.0,0.84066]
[1756930147616,1.44943632,112330.0,112320.0,0.84066]
[1756930148916,1.44943632,112330.0,112320.0,0.02762]
[1756930149123,1.44943632,112330.0,112320.0,0.84066]
[1756930149916,1.46560131,112330.0,112320.0,0.84066]
[1756930150919,1.40151018,112330.0,112320.0,0.02762]
[1756930151119,1.40151018,112330.0,112320.0,0.84066]
[1756930151619,1.46560131,112330.0,112320.0,0.84066]
[1756930152511,1.40151018,112330.0,112320.0,0.84066]
[1756930154517,1.40151018,112330.0,112320.0,0.83621]
[1756930155518,1.40194306,112330.0,112320.0,0.83621]
[1756930156020,1.46603419,112330.0,112320.0,0.81304]
[1756930156221,2.19533145,112330.0,112320.0,0.81304]
[1756930156723,0.03908,112320.0,112310.0,0.02807]
[1756930156919,1.90645883,112320.0,112310.0,0.84107]
[1756930157119,1.92798463,112320.0,112310.0,0.84107]
[1756930159521,1.93700326,112320.0,112310.0,0.84107]
[1756930159722,1.88901895,112320.0,112310.0,0.84107]
[1756930160324,1.88901895,112320.0,112310.0,0.02807]
[1756930160623,1.87436753,112320.0,112310.0,0.85576]
[1756930161123,1.8653489,112320.0,112310.0,0.85576]
[1756930161327,0.77140301,112320.0,112310.0,0.85576]
[1756930161820,0.77140301,112320.0,112310.0,1.10576]
[1756930163527,0.38223438,112320.0,112310.0,1.10576]
[1756930163723,0.02143438,112320.0,112310.0,1.83120863]
[1756930164128,0.02143438,112320.0,112310.0,2.17120863]
[1756930164325,0.02143438,112320.0,112310.0,1.63656]
[1756930164631,0.02143438,112320.0,112310.0,1.46656]
[1756930165028,0.02143438,112320.0,112310.0,1.46856]
[1756930165733,0.02143438,112320.0,112310.0,0.65556]
[1756930165933,0.38608301,112320.0,112310.0,1.47056]
[1756930166232,0.02143438,112320.0,112310.0,1.47056]
[1756930167031,0.38608301,112320.0,112310.0,1.47056]
[1756930167433,0.41060301,112320.0,112310.0,1.47052]
[1756930167734,0.38608301,112320.0,112310.0,1.47052]
[1756930168626,0.41060301,112320.0,112310.0,0.65756]
[1756930168834,0.38608301,112320.0,112310.0,1.47052]
[1756930170329,0.38608301,112320.0,112310.0,0.65756]
[1756930170537,0.41060301,112320.0,112310.0,1.47048]
[1756930170729,0.38608301,112320.0,112310.0,1.47048]
[1756930171543,0.38608301,112320.0,112310.0,1.46848]
[1756930171835,0.38608301,112320.0,112310.0,1.47048]
[1756930172935,0.38608301,112320.0,112310.0,1.46848]
[1756930173141,0.38608301,112320.0,112310.0,1.47048]
[1756930174338,0.41060301,112320.0,112310.0,1.47048]
[1756930174531,0.41060301,112320.0,112310.0,1.47044]
[1756930175734,0.41063115,112320.0,112310.0,1.47044]
[1756930175937,0.41063115,112320.0,112310.0,1.46599]
[1756930177035,0.41063115,112320.0,112310.0,1.47044]
[1756930178043,0.04598252,112320.0,112310.0,1.47044]
[1756930178341,0.41063115,112320.0,112310.0,1.47044]
[1756930180042,0.41063115,112320.0,112310.0,1.4704]
[1756930180237,0.41063115,112320.0,112310.0,0.03207]
[1756930180238,1.76850704,112320.0,112310.0,0.03207]
[1756930180542,1.76850704,112320.0,112310.0,0.84592]
[1756930180543,0.73480365,112320.0,112310.0,0.84592]
[1756930180739,0.73480365,112320.0,112310.0,0.00845]
[1756930180740,2.32702187,112320.0,112310.0,0.00845]
[1756930181037,2.32702187,112320.0,112280.0,1.96686668]
[1756930181243,0.44550482,112300.0,112290.0,0.45015]
[1756930181548,0.46696734,112300.0,112290.0,0.45015]
[1756930181737,0.71696734,112300.0,112290.0,0.45015]
[1756930182241,1.08161597,112300.0,112290.0,0.45015]
[1756930182451,1.03357115,112300.0,112290.0,0.45015]
[1756930182947,1.08161597,112300.0,112290.0,0.45015]
[1756930183147,1.08161597,112300.0,112290.0,0.02463]
[1756930183343,1.09035586,112300.0,112290.0,0.83747]
[1756930183744,1.09135586,112300.0,112290.0,0.83747]
[1756930184248,1.08261597,112300.0,112290.0,0.83747]
[1756930184449,1.03457115,112300.0,112290.0,0.83747]
[1756930184645,1.02064115,112300.0,112290.0,0.85223]
[1756930187946,0.65984115,112300.0,112290.0,0.85223]
[1756930190153,0.65884115,112300.0,112290.0,0.85223]
[1756930190755,0.65884115,112300.0,112290.0,0.03939]
[1756930190954,0.65884115,112300.0,112290.0,0.85231]
[1756930191347,0.65884115,112300.0,112290.0,0.03939]
[1756930191548,0.65884115,112300.0,112290.0,0.85231]
[1756930192052,0.29419252,112300.0,112290.0,0.85231]
[1756930192255,0.65884115,112300.0,112290.0,0.85231]
[1756930194455,0.65884115,112300.0,112290.0,0.03939]
[1756930194756,0.65884115,112300.0,112290.0,0.85231]
[1756930195444,0.65884115,112300.0,112290.0,0.03939]
[1756930195741,0.65884115,112300.0,112290.0,0.85231]
[1756930197059,0.29419252,112300.0,112290.0,0.85231]
[1756930197249,0.65884115,112300.0,112280.0,2.32766668]
[1756930197451,0.37857863,112290.0,112280.0,2.32766668]
[1756930197650,1.49398704,112290.0,112280.0,1.89531]
[1756930197848,1.85478704,112290.0,112280.0,1.88144]
[1756930198155,2.15283186,112290.0,112280.0,1.88144]
[1756930198345,2.15283186,112290.0,112280.0,2.69536]
[1756930198546,2.17556186,112290.0,112280.0,0.001]
[1756930198751,2.17556186,112290.0,112280.0,0.61744]
[1756930199158,1.92556186,112290.0,112280.0,0.61744]
[1756930199356,1.92556186,112290.0,112280.0,0.61844]
[1756930199952,1.92556186,112290.0,112280.0,0.61744]
[1756930200151,1.92556186,112290.0,112280.0,0.61644]
[1756930200658,1.92556186,112290.0,112280.0,0.64107]
[1756930202659,1.92556186,112290.0,112280.0,0.61644]
[1756930202861,1.92556186,112290.0,112280.0,0.64107]
[1756930209458,1.92556186,112290.0,112280.0,0.02463]
[1756930209764,1.92556186,112290.0,112280.0,0.74003]
[1756930210360,1.87751704,112290.0,112280.0,0.74003]
[1756930210764,1.87751704,112290.0,112280.0,0.83759]
[1756930214359,1.94160817,112290.0,112280.0,0.83759]
[1756930216268,1.92549742,112290.0,112280.0,0.83759]
[1756930217470,1.92662378,112290.0,112280.0,0.83759]
[1756930220169,2.28742378,112290.0,112280.0,0.83759]
[1756930223272,2.2394434,112290.0,112280.0,0.83759]
[1756930226280,2.30353453,112290.0,112280.0,0.83759]
[1756930229068,2.2394434,112290.0,112280.0,0.83759]
[1756930233285,2.30360183,112290.0,112280.0,0.83759]
[1756930235583,2.30360183,112290.0,112280.0,0.02463]
[1756930235788,0.03874,112280.0,112270.0,0.72236]
[1756930236088,0.82863066,112280.0,112270.0,0.72236]
[1756930236282,0.85009318,112280.0,112270.0,0.72236]
[1756930236584,0.01406,112270.0,112260.0,0.02312]
[1756930236786,1.90736951,112270.0,112260.0,0.02312]
[1756930236990,1.94488384,112270.0,112260.0,0.02312]
[1756930237289,1.8807234,112270.0,112260.0,0.02312]
[1756930238284,1.8807234,112270.0,112260.0,0.02512]
[1756930238490,1.92879039,112270.0,112260.0,0.02512]
[1756930238793,1.92879039,112270.0,112260.0,0.004]
[1756930239792,0.03782,112260.0,112250.0,0.0272]
[1756930240096,0.81160407,112260.0,112250.0,0.83551]
[1756930240297,0.83306659,112260.0,112250.0,0.83551]
[1756930240995,0.83306659,112260.0,112250.0,0.84903]
[1756930241199,0.83306659,112260.0,112250.0,0.85203]
[1756930241992,0.83306659,112260.0,112250.0,0.85503]
[1756930242398,0.83306659,112260.0,112250.0,0.84151]
[1756930244101,0.84219293,112260.0,112250.0,0.84151]
[1756930244801,0.84219293,112260.0,112250.0,0.85503]
[1756930250006,0.82778293,112260.0,112250.0,0.85503]
[1756930250201,1.92257359,112260.0,112250.0,0.85503]
[1756930250504,1.87451974,112260.0,112250.0,0.85503]
[1756930251501,1.13553296,112260.0,112250.0,1.10503]
[1756930251708,0.77060274,112260.0,112250.0,1.10503]
[1756930251894,0.38639274,112260.0,112250.0,1.46583]
[1756930252297,0.38639274,112260.0,112250.0,1.10503]
[1756930255109,0.38639274,112260.0,112250.0,1.46583]
[1756930255305,0.38639274,112260.0,112250.0,1.10503]
[1756930257905,0.75132296,112260.0,112250.0,1.10503]
[1756930258806,0.38639274,112260.0,112250.0,1.10503]
[1756930259007,0.38639274,112260.0,112250.0,1.46583]
[1756930259208,0.38639274,112260.0,112250.0,1.21583]
[1756930259510,0.40980274,112260.0,112250.0,0.85503]
[1756930260111,0.40980274,112260.0,112250.0,0.85948]
[1756930261009,0.77473296,112260.0,112250.0,0.85948]
[1756930262410,0.82278681,112260.0,112250.0,0.85948]
[1756930264111,0.45785659,112260.0,112250.0,0.85948]
[1756930264310,0.06951637,112260.0,112250.0,0.85948]
[1756930264507,0.38639274,112260.0,112250.0,1.22028]
[1756930265415,0.38639274,112260.0,112250.0,1.22939498]
[1756930265807,0.38639274,112260.0,112250.0,1.22028]
[1756930267009,0.38639274,112260.0,112250.0,1.22906811]
[1756930267913,0.38639274,112260.0,112250.0,1.22028]
[1756930268409,0.40980274,112260.0,112250.0,0.40752]
[1756930268611,0.40980274,112260.0,112250.0,1.22012]
[1756930271311,0.40980274,112260.0,112250.0,1.22921262]
[1756930273611,0.38639274,112260.0,112250.0,1.22921262]
[1756930277120,0.02146252,112260.0,112250.0,1.22921262]
[1756930277314,0.38639274,112260.0,112250.0,1.22921262]
[1756930277515,0.38639968,112260.0,112250.0,1.22921262]
[1756930278317,0.02146252,112260.0,112250.0,1.59414978]
[1756930278517,0.02146252,112260.0,112250.0,2.20414978]
[1756930278716,0.02146252,112260.0,112250.0,2.15414978]
[1756930281023,0.02146252,112260.0,112250.0,2.24320188]
[1756930281223,0.02146252,112260.0,112250.0,2.30304188]
[1756930283417,0.02146252,112260.0,112250.0,2.56824188]
[1756930285126,0.02146252,112260.0,112250.0,1.75580188]
[1756930285323,0.02146252,112260.0,112250.0,2.56816188]
[1756930285720,0.0001,112270.0,112260.0,0.1263442]
[1756930285927,0.45759054,112290.0,112280.0,0.0373]
[1756930286228,0.45759054,112290.0,112280.0,0.84962]
[1756930286729,0.40953669,112290.0,112280.0,0.84962]
[1756930287628,0.41053669,112290.0,112280.0,0.85407]
[1756930287832,0.41053669,112290.0,112280.0,0.85403]
[1756930288224,0.41153669,112290.0,112280.0,0.85403]
[1756930289731,0.41053669,112290.0,112280.0,1.21483]
[1756930290427,0.40953669,112290.0,112280.0,1.21483]
[1756930292121,0.40953669,112290.0,112280.0,0.40255]
[1756930292328,0.40953669,112290.0,112280.0,1.21479]
[1756930293332,0.40953669,112290.0,112280.0,0.40255]
[1756930293533,0.40953669,112290.0,112280.0,1.21475]
[1756930293731,0.40953669,112290.0,112280.0,0.85395]
[1756930294233,0.40953669,112290.0,112280.0,0.04175]
[1756930294435,0.40953669,112290.0,112280.0,0.85391]
[1756930295837,0.04459953,112290.0,112280.0,0.85391]
[1756930296032,0.40953669,112290.0,112280.0,0.85391]
[1756930298032,0.40953669,112290.0,112280.0,0.83908]
[1756930298033,1.87925817,112290.0,112280.0,0.83908]
[1756930299944,1.88025817,112290.0,112280.0,0.83908]
[1756930303339,1.88025817,112290.0,112280.0,0.02696]
[1756930303544,1.88025817,112290.0,112280.0,0.839]
[1756930304137,1.88025817,112290.0,112280.0,0.02696]
[1756930304345,1.92831202,112290.0,112280.0,0.839]
[1756930304849,1.92831202,112290.0,112280.0,0.02696]
[1756930305041,1.92831202,112290.0,112280.0,0.83896]
[1756930306548,1.92831202,112290.0,112280.0,0.02696]
[1756930307043,2.17831202,112290.0,112280.0,0.81645]
[1756930307249,2.13025817,112290.0,112280.0,0.81645]
[1756930307546,0.03869,112280.0,112270.0,0.02405]
[1756930307740,0.81246611,112280.0,112270.0,0.83605]
[1756930307943,0.83385564,112280.0,112270.0,0.83605]
[1756930308647,0.83385564,112280.0,112270.0,0.8415]
[1756930311146,0.47305564,112280.0,112270.0,0.8415]
[1756930311352,0.83385564,112280.0,112270.0,0.8415]
[1756930314451,0.83387585,112280.0,112270.0,0.8415]
[1756930315247,0.7858369,112280.0,112270.0,0.8415]
[1756930317656,0.7858369,112280.0,112270.0,0.0295]
[1756930317952,0.83387585,112280.0,112270.0,0.84142]
[1756930325452,0.45429869,112280.0,112270.0,0.85608]
[1756930325755,0.81923585,112280.0,112270.0,0.85608]
[1756930326662,0.81923585,112280.0,112270.0,0.85163]
[1756930327558,0.45843585,112280.0,112270.0,1.21243]
[1756930327759,0.3863469,112280.0,112270.0,1.21243]
[1756930327958,0.43438585,112280.0,112270.0,1.21243]
[1756930328663,0.45843585,112280.0,112270.0,0.85163]
[1756930329259,0.43702611,112280.0,112270.0,0.85163]
[1756930330155,0.38772716,112290.0,112280.0,0.03923]
[1756930330366,0.38762716,112290.0,112280.0,0.03923]
[1756930331358,0.38862716,112290.0,112280.0,0.03923]
[1756930332254,0.41001085,112290.0,112280.0,0.03923]
[1756930332460,0.45807476,112290.0,112280.0,0.03923]
[1756930332660,0.45807476,112290.0,112280.0,0.40003]
[1756930333063,0.43669107,112290.0,112280.0,0.40003]
[1756930334057,0.38862716,112290.0,112280.0,0.40003]
[1756930334262,0.41001003,112290.0,112280.0,0.40003]
[1756930334461,0.45807197,112290.0,112280.0,0.40003]
[1756930334657,0.4366891,112290.0,112280.0,0.03923]
[1756930334853,0.4366891,112290.0,112280.0,0.85099]
[1756930335458,0.38862716,112290.0,112280.0,0.85099]
[1756930335662,0.38862716,112290.0,112280.0,0.03923]
[1756930335859,0.76815432,112290.0,112280.0,0.83667]
[1756930336060,0.38862716,112290.0,112280.0,0.85095]
[1756930339480,0.38848909,112290.0,112280.0,0.85095]
[1756930344373,0.38848909,112290.0,112280.0,1.21175]
[1756930344768,0.02369,112290.0,112280.0,1.21175]
[1756930345067,0.38848909,112290.0,112280.0,1.21175]
[1756930345663,0.40985888,112290.0,112280.0,1.21175]
[1756930346570,0.40885888,112290.0,112280.0,1.21275]
[1756930346767,0.40885888,112290.0,112280.0,1.2172]
[1756930347866,0.02136979,112290.0,112280.0,1.2172]
[1756930348073,0.02136979,112290.0,112280.0,1.83199909]
[1756930348475,0.02136979,112290.0,112280.0,1.4672]
[1756930348775,0.02136979,112290.0,112280.0,1.83199909]
[1756930349277,0.02136979,112290.0,112280.0,1.02027909]
[1756930349475,0.02136979,112290.0,112280.0,1.09146542]
[1756930349773,0.02136979,112290.0,112280.0,1.90302542]
[1756930349962,0.38616888,112290.0,112280.0,1.53822633]
[1756930350276,0.40885888,112290.0,112280.0,0.72666633]
[1756930350469,0.40885888,112290.0,112280.0,1.53822633]
[1756930351477,0.40885888,112290.0,112280.0,0.72666633]
[1756930351776,0.40885888,112290.0,112280.0,1.53822633]
[1756930354478,0.40885888,112290.0,112280.0,1.53818633]
[1756930358582,0.77365797,112290.0,112280.0,0.40548]